bitfinex-derivatives/quotes_ETHF0:USTF0_20260201
["timestamp","ask_amount","ask_price","bid_price","bid_amount"]
[1769958938797,0.2136,2343.0,2341.4,7.42058962]
[1769958939001,0.35513589,2343.4,2341.4,7.42058962]
[1769958939202,0.35513589,2343.4,2341.7,0.21371]
[1769958939402,7.45175416,2343.0,2341.8,7.42058962]
[1769958939701,0.2136,2343.0,2341.8,7.42458635]
[1769958939901,0.2136,2343.0,2341.8,12.82158635]
[1769958940107,0.2136,2343.0,2341.9,7.42058962]
[1769958940303,7.23815416,2343.4,2341.9,7.42058962]
[1769958940502,0.21356,2343.4,2341.9,7.42058962]
[1769958940702,0.21356,2343.4,2341.8,0.00399673]
[1769958940703,0.21356,2343.4,2342.1,7.42058962]
[1769958941008,0.35101488,2344.0,2342.1,7.42058962]
[1769958941009,7.23815416,2343.5,2342.1,7.42058962]
[1769958942000,0.21361,2342.9,2341.8,7.42458635]
[1769958942406,0.21362,2342.8,2341.8,7.42458635]
[1769958942601,7.23815416,2344.3,2342.3,7.42058962]
[1769958942811,7.23815416,2343.5,2342.1,7.42058962]
[1769958943006,3.3569326,2344.0,2342.1,7.42058962]
[1769958943007,7.23815416,2343.1,2342.1,7.42058962]
[1769958943210,7.45176416,2342.9,2341.8,0.00399673]
[1769958943412,7.45176416,2342.9,2341.8,7.42458635]
[1769958943806,7.23815416,2343.2,2341.8,7.42458635]
[1769958944806,0.2136,2343.1,2341.8,7.42458635]
[1769958945008,6.78947015,2343.5,2341.8,7.42458635]
[1769958945912,6.78947015,2343.4,2341.8,7.42458635]
[1769958946213,7.00307015,2343.0,2341.8,7.42458635]
[1769958946409,6.78947015,2342.8,2341.8,7.42458635]
[1769958946609,0.21366,2342.4,2341.4,7.2128479]
[1769958946809,3.3569326,2343.0,2341.4,7.2128479]
[1769958946810,0.21367,2342.3,2341.4,7.2128479]
[1769958947016,0.21367,2342.3,2341.4,5.83001872]
[1769958947710,0.00327509,2342.3,2341.4,5.83324394]
[1769958948710,6.79274524,2342.3,2341.4,0.00322522]
[1769958948911,6.79274524,2342.3,2339.7,0.2139]
[1769958948912,6.78947015,2341.9,2340.6,7.2128479]
[1769958949615,0.21369,2342.0,2340.6,7.2128479]
[1769958949815,0.21371,2341.8,2340.6,7.2128479]
[1769958950117,0.21371,2341.8,2340.6,7.21747785]
[1769958950314,0.21372,2341.7,2340.6,7.21747785]
[1769958950712,7.00319015,2341.7,2340.6,7.21747785]
[1769958950912,7.00323015,2341.3,2340.6,0.00462995]
[1769958951520,0.21376,2341.2,2340.6,0.00462995]
[1769958952216,0.21372,2341.7,2340.6,7.21747785]
[1769958952712,0.21375,2341.3,2340.6,0.00462995]
[1769958952913,0.2137,2341.9,2340.6,7.21747785]
[1769958953216,0.00327509,2342.3,2340.6,7.21747785]
[1769958953217,6.78947015,2341.7,2340.6,7.21747785]
[1769958953617,6.78947015,2342.2,2340.6,7.21747785]
[1769958953813,6.78947015,2341.7,2340.6,0.00462995]
[1769958954015,0.21375,2341.4,2340.6,0.00462995]
[1769958954616,0.21375,2341.4,2340.6,7.21747785]
[1769958954914,0.2137,2341.9,2340.6,7.21747785]
[1769958955120,0.00327509,2342.3,2340.6,7.21747785]
[1769958956321,0.00327509,2342.3,2340.7,9.74117887]
[1769958956520,0.00327509,2342.3,2340.8,7.2128479]
[1769958957016,0.00327509,2342.3,2340.9,7.2128479]
[1769958957219,0.21367,2342.2,2341.1,7.2128479]
[1769958957420,0.21367,2342.2,2341.2,2.565]
[1769958957619,0.21367,2342.2,2341.3,7.2128479]
[1769958958512,0.21369,2342.0,2341.3,7.2128479]
[1769958958922,0.00327509,2342.3,2341.3,7.2128479]
[1769958959421,0.21368,2342.2,2341.3,7.2128479]
[1769958960016,0.2137,2341.9,2340.7,7.2128479]
[1769958960215,6.79274524,2342.3,2340.9,7.2128479]
[1769958960418,6.78947015,2342.0,2340.6,0.00462995]
[1769958960616,0.21368,2342.1,2340.6,7.21747785]
[1769958960814,0.00327509,2342.3,2340.8,9.74117887]
[1769958961015,0.21372,2341.7,2340.9,7.2128479]
[1769958961221,6.78947015,2341.9,2340.9,7.2128479]
[1769958961222,0.21373,2341.6,2340.9,7.2128479]
[1769958961517,0.21373,2341.6,2340.6,7.21747785]
[1769958962022,6.78947015,2342.1,2340.6,7.21747785]
[1769958962723,0.21371,2341.8,2340.6,7.21747785]
[1769958962924,0.21375,2341.4,2340.6,0.00462995]
[1769958963319,6.78947015,2341.6,2339.9,7.2128479]
[1769958963523,0.2138,2340.9,2339.9,7.2128479]
[1769958963918,6.78947015,2341.1,2339.9,7.2128479]
[1769958964115,0.21378,2341.0,2339.9,7.2128479]
[1769958964426,7.00327015,2340.8,2339.9,0.00511212]
[1769958964622,7.36301462,2340.8,2339.9,0.00511212]
[1769958964821,7.00327015,2340.8,2339.9,0.00511212]
[1769958965016,6.78947015,2340.8,2339.9,0.00511212]
[1769958965224,6.78947015,2340.4,2339.3,7.2128479]
[1769958965423,0.2138,2340.8,2339.3,7.2128479]
[1769958966226,0.00398641,2340.8,2339.3,7.21607891]
[1769958966722,0.00398641,2340.8,2339.5,7.2128479]
[1769958968320,0.00398641,2340.8,2339.7,7.22862183]
[1769958968727,0.00398641,2340.8,2339.9,7.22862183]
[1769958969622,12.75054916,2344.0,2340.1,7.22862183]
[1769958969623,0.21374,2341.5,2340.1,7.22862183]
[1769958970025,7.26811579,2342.0,2340.1,7.22862183]
[1769958970221,0.21369,2342.0,2340.1,7.44248183]
[1769958970529,7.26811579,2341.8,2340.1,7.22862183]
[1769958970728,7.26811579,2341.8,2340.2,7.22862183]
[1769958970928,0.21379,2340.9,2340.2,7.22862183]
[1769958972117,7.26811579,2341.2,2340.2,7.22862183]
[1769958972431,0.00474772,2342.0,2340.2,7.22862183]
[1769958973127,0.00474772,2342.0,2340.2,9.7569528]
[1769958973320,0.21843772,2342.0,2340.3,7.44246183]
[1769958973632,0.21843772,2342.0,2340.5,7.22862183]
[1769958974026,0.21843772,2342.0,2340.7,7.22862183]
[1769958974422,7.26811579,2342.7,2340.7,7.22862183]
[1769958974628,0.21367,2342.3,2340.9,7.22862183]
[1769958974823,7.26811579,2342.7,2340.9,7.22862183]
[1769958974824,0.21373,2341.6,2340.9,7.22862183]
[1769958975226,0.21367,2342.2,2340.9,7.22862183]
[1769958975421,7.26811579,2342.0,2340.4,2.565]
[1769958975621,0.21373,2341.6,2340.5,7.22862183]
[1769958975828,0.21890861,2342.2,2340.5,7.22862183]
[1769958976228,0.21890861,2342.2,2340.6,9.7569528]
[1769958976429,0.21890861,2342.2,2340.8,7.22862183]
[1769958976824,0.00522861,2342.2,2340.8,7.22862183]
[1769958977024,7.2733444,2342.2,2340.8,7.22862183]
[1769958977226,0.21373,2341.6,2340.8,7.22862183]
[1769958977431,0.21375,2341.4,2340.3,9.79362183]
[1769958977631,0.21376,2341.3,2340.3,7.22862183]
[1769958978227,7.26811579,2341.7,2340.3,7.22862183]
[1769958978432,0.21371,2341.8,2340.3,7.22862183]
[1769958978730,0.21372,2341.7,2340.3,7.22862183]
[1769958979326,9.8383444,2342.2,2340.3,7.22862183]
[1769958979327,7.48185579,2341.5,2340.3,7.22862183]
[1769958979525,7.26811579,2341.5,2340.3,7.22862183]
[1769958981331,0.21377,2341.2,2340.3,7.22862183]
[1769958983033,7.48182579,2341.8,2340.3,7.22862183]
[1769958983232,0.21372,2341.7,2340.3,7.22862183]
[1769958983436,0.21377,2341.2,2340.3,7.22862183]
[1769958983635,0.21381,2340.7,2339.7,7.22862183]
[1769958983830,0.21382,2340.6,2339.7,7.22862183]
[1769958984828,0.21383,2340.5,2339.4,7.22862183]
[1769958985026,7.27114116,2340.5,2339.3,0.00323101]
[1769958985227,0.21388,2340.0,2339.3,0.00323101]
[1769958985428,7.48200579,2339.8,2339.3,0.00323101]
[1769958985739,0.21391,2339.6,2338.5,7.22862183]
[1769958986436,0.21392,2339.5,2338.5,7.22862183]
[1769958986633,7.48209579,2338.9,2338.0,50.0]
[1769958986833,0.21392,2339.5,2338.1,7.23366073]
[1769958987236,0.21393,2339.4,2338.1,7.23366073]
[1769958987436,6.23115579,2340.0,2338.3,7.22862183]
[1769958987437,0.21388,2340.0,2338.3,7.22862183]
[1769958987636,0.21388,2340.0,2338.3,7.2317656]
[1769958987832,0.21388,2340.0,2338.5,7.22862183]
[1769958988032,0.21388,2340.0,2338.7,7.22862183]
[1769958988234,7.48199579,2340.0,2338.7,7.22862183]
[1769958988438,0.21392,2339.5,2338.7,0.0050389]
[1769958988640,7.48203579,2339.5,2338.4,7.22862183]
[1769958988939,7.48203579,2339.5,2338.4,7.23366073]
[1769958989237,7.48204579,2339.4,2338.4,7.23366073]
[1769958989639,0.21396,2339.1,2338.3,0.00314377]
[1769958989938,7.48208579,2339.0,2338.3,0.00314377]
[1769958990236,7.48209579,2338.9,2338.0,50.0]
[1769958990433,7.26811579,2338.7,2336.9,7.22862183]
[1769958990635,7.26811579,2337.5,2336.2,2.566]
[1769958990834,7.26811579,2337.5,2334.9,17.964]
[1769958990835,7.26811579,2336.8,2334.9,2.52833097]
[1769958991036,7.48232579,2336.3,2335.0,7.23366073]
[1769958991234,7.26811579,2336.7,2335.1,7.22862183]
[1769958991438,7.26811579,2336.4,2335.1,7.23860719]
[1769958991635,7.26811579,2335.9,2334.7,7.22862183]
[1769958991833,7.26811579,2336.4,2334.7,7.22862183]
[1769958992037,7.26811579,2336.4,2334.9,7.22862183]
[1769958992239,0.21419,2336.5,2334.9,7.22862183]
[1769958992434,0.21419,2336.5,2335.1,7.22862183]
[1769958992640,7.26811579,2336.1,2334.7,7.22862183]
[1769958992837,7.26811579,2336.1,2335.1,0.00318275]
[1769958993437,7.26811579,2336.1,2332.8,3.81276008]
[1769958993438,7.26811579,2335.1,2333.6,7.22862183]
[1769958993641,7.26811579,2334.4,2333.0,7.22862183]
[1769958993836,7.26811579,2334.4,2333.1,7.23366073]
[1769958994048,7.45060258,2336.5,2333.3,7.22862183]
[1769958994049,3.37730298,2336.2,2333.3,7.22862183]
[1769958994347,3.38183231,2336.2,2333.3,0.00342482]
[1769958994643,3.38183231,2336.2,2333.4,0.0050389]
[1769958994845,3.37730298,2335.4,2333.3,0.00342482]
[1769958995044,0.21432,2335.2,2333.3,7.23708555]
[1769958995249,2.568,2335.3,2333.3,7.23708555]
[1769958995437,0.21435,2334.8,2333.3,7.23708555]
[1769958995742,2.568,2335.3,2333.3,7.23708555]
[1769958995945,4.3019406,2335.4,2333.3,7.23708555]
[1769958996341,4.3019406,2334.9,2333.3,7.23708555]
[1769958996846,4.5162806,2334.9,2333.3,7.23708555]
[1769958997046,4.5162806,2334.9,2333.4,7.22862183]
[1769958997450,4.49066428,2334.8,2333.6,7.21925002]
[1769958997742,4.27631428,2334.8,2333.3,0.00342482]
[1769958997945,4.27631428,2334.4,2333.3,0.00342482]
[1769958998143,4.27631428,2334.2,2333.3,0.00342482]
[1769958998342,4.27631428,2334.2,2333.3,0.00846372]
[1769958998538,0.2144,2334.3,2333.3,0.00846372]
[1769958998946,0.2144,2334.3,2333.3,7.22771374]
[1769958999142,0.00453557,2334.4,2333.3,7.22771374]
[1769958999443,0.00453557,2334.4,2333.4,7.21925002]
[1769958999948,0.00453557,2334.4,2333.3,0.00846372]
[1769958999949,0.00453557,2334.4,2333.5,0.0050389]
[1769959000840,4.24799874,2335.0,2333.5,7.22428892]
[1769959001441,0.21428,2335.6,2333.5,7.22428892]
[1769959001848,0.21428,2335.6,2333.7,7.21925002]
[1769959001849,0.00486537,2335.6,2333.7,7.21925002]
[1769959002149,0.2142,2336.5,2334.6,7.21925002]
[1769959002345,0.21432,2335.2,2334.6,7.21925002]
[1769959002650,0.21425,2335.9,2334.6,7.22428892]
[1769959003045,4.22190067,2335.9,2334.2,7.21925002]
[1769959003351,0.21426,2335.8,2334.2,7.21925002]
[1769959003551,0.21426,2335.8,2334.4,7.21925002]
[1769959003749,0.00418085,2335.9,2334.4,7.21925002]
[1769959003941,0.21438,2334.5,2333.4,7.21925002]
[1769959004141,0.21439,2334.4,2333.4,7.21925002]
[1769959004444,4.25675637,2334.6,2333.0,9.79025002]
[1769959004445,0.2144,2334.3,2333.0,9.79025002]
[1769959004645,0.2144,2334.3,2333.3,7.17282033]
[1769959005251,4.24674716,2335.0,2333.3,7.17282033]
[1769959005745,0.21436,2334.7,2333.3,7.17282033]
[1769959006144,0.2143,2335.4,2333.3,7.17282033]
[1769959006648,4.59096926,2335.9,2333.3,7.17282033]
[1769959006649,0.21431,2335.3,2333.5,7.16939551]
[1769959006946,0.00418085,2335.9,2333.5,7.16939551]
[1769959007147,0.00418085,2335.9,2333.7,7.16939551]
[1769959007148,0.21844085,2335.9,2333.7,7.16939551]
[1769959007349,4.62457795,2335.9,2333.7,7.16939551]
[1769959007553,4.62457795,2335.9,2333.9,7.16939551]
[1769959007944,4.6203971,2335.8,2333.9,7.16939551]
[1769959008144,4.6203971,2335.8,2331.8,3.81276008]
[1769959008145,0.21444,2333.8,2332.7,7.16939551]
[1769959008544,0.21448,2333.4,2332.7,7.16939551]
[1769959008748,0.21448,2333.4,2329.8,5.90563395]
[1769959008749,4.6203971,2333.5,2332.1,7.16939551]
[1769959008952,0.21451,2333.1,2331.8,7.16939551]
[1769959009153,0.21840464,2333.1,2332.0,0.01496203]
[1769959009351,0.00389464,2333.1,2332.0,7.18435754]
[1769959010051,5.00285572,2333.1,2332.0,0.00898591]
[1769959010250,5.20456517,2332.2,2330.9,7.16939551]
[1769959010452,0.21453,2332.9,2330.9,7.16939551]
[1769959010647,5.20452517,2332.6,2330.9,7.16939551]
[1769959010847,5.20454517,2332.5,2330.9,7.16939551]
[1769959011050,0.00389464,2333.1,2329.6,0.21482]
[1769959011051,4.98997517,2332.1,2329.6,0.21482]
[1769959011248,5.05127599,2330.5,2329.6,0.00346666]
[1769959011453,5.05127599,2331.5,2329.8,7.16939551]
[1769959011647,5.2703528,2331.8,2330.0,7.16939551]
[1769959011849,5.0557228,2331.0,2329.6,7.17286217]
[1769959012048,5.0557228,2330.4,2328.9,7.16939551]
[1769959012360,5.05225614,2330.2,2328.6,7.16939551]
[1769959012650,5.05225614,2330.2,2328.2,7.16939551]
[1769959012856,5.26705614,2330.0,2328.3,7.16939551]
[1769959013045,8.44886055,2330.3,2328.3,7.17485686]
[1769959013247,5.26709614,2329.5,2328.3,0.00546135]
[1769959013448,0.21486,2329.3,2328.3,0.00546135]
[1769959013654,0.00382121,2330.0,2328.5,7.16939551]
[1769959013952,4.97474057,2329.7,2328.3,7.17485686]
[1769959014151,4.97474057,2329.6,2328.3,0.00546135]
[1769959014357,0.21487,2329.2,2328.3,0.00546135]
[1769959014650,4.97474057,2329.9,2328.3,7.17485686]
[1769959014857,0.00382121,2330.0,2328.3,7.17485686]
[1769959015254,3.39660441,2330.8,2328.7,7.16939551]
[1769959015452,4.89778004,2331.1,2328.9,7.16939551]
[1769959015958,3.39660441,2331.3,2328.9,7.16939551]
[1769959016258,4.89778004,2331.0,2328.9,7.16939551]
[1769959016456,4.89778004,2330.7,2328.9,7.16939551]
[1769959016760,0.21475,2330.5,2328.9,7.16939551]
[1769959017153,4.89778004,2330.7,2328.9,7.16939551]
[1769959017556,5.05303942,2330.0,2328.4,7.16939551]
[1769959017755,5.26783942,2330.0,2328.4,7.16939551]
[1769959018760,0.21483,2329.6,2328.4,7.16939551]
[1769959018951,5.2708815,2329.6,2328.4,7.16939551]
[1769959019158,5.05303942,2329.4,2328.3,0.00546135]
[1769959019354,5.36061899,2329.1,2327.6,7.16939551]
[1769959019552,5.14027764,2328.3,2326.7,9.74439551]
[1769959019754,5.14027764,2328.3,2326.8,7.16939551]
[1769959019953,0.21497,2328.1,2326.8,7.16939551]
[1769959020152,2.575,2329.0,2325.0,3.46372236]
[1769959020153,2.56527764,2326.2,2325.0,3.46372236]
[1769959020353,3.39660441,2325.6,2324.5,7.47884527]
[1769959020553,0.07949436,2327.5,2324.5,7.40818473]
[1769959020758,0.21502,2327.6,2324.7,0.21528]
[1769959021060,0.07949436,2328.5,2324.8,18.031]
[1769959021257,3.39660441,2328.6,2325.3,3.39660441]
[1769959021456,0.09967814,2328.6,2325.6,0.2152]
[1769959021652,0.09967814,2328.0,2324.8,15.53854921]
[1769959021853,0.21502,2327.6,2324.9,5.839]
[1769959022052,0.09967814,2328.3,2325.2,3.39660441]
[1769959022252,0.21498,2328.0,2325.2,0.21523]
[1769959022453,0.09967814,2328.2,2325.4,6.9455762]
[1769959022659,3.39660441,2326.2,2324.0,7.47884527]
[1769959022861,0.48863845,2326.1,2324.6,14.62426126]
[1769959023054,0.21519,2325.7,2324.6,14.62426126]
[1769959023255,0.48863845,2326.1,2324.6,14.62426126]
[1769959023454,3.39660441,2326.3,2322.1,18.039]
[1769959023455,0.21503,2327.5,2324.7,7.16939551]
[1769959023659,0.21503,2327.5,2324.9,7.16939551]
[1769959023865,0.21843524,2327.5,2325.1,7.16939551]
[1769959024062,3.39660441,2327.4,2325.1,7.16939551]
[1769959024257,3.39660441,2327.4,2324.9,5.11247354]
[1769959024258,3.39660441,2326.8,2325.2,14.62426126]
[1769959024460,2.577,2327.4,2325.0,21.79365677]
[1769959024461,0.21512,2326.5,2325.0,21.79365677]
[1769959024763,3.39660441,2327.1,2325.1,7.16939551]
[1769959024956,3.39660441,2327.1,2325.2,14.62426126]
[1769959024957,5.91660441,2327.1,2325.2,14.62426126]
[1769959025156,2.577,2327.4,2325.3,7.16939551]
[1769959025365,0.00340524,2327.5,2325.2,14.62426126]
[1769959025366,0.00340524,2327.5,2325.5,7.16939551]
[1769959025662,0.91897058,2327.5,2325.5,7.16939551]
[1769959025864,0.91897058,2327.5,2325.7,7.16939551]
[1769959026162,1.13400058,2327.5,2325.7,7.16939551]
[1769959026364,0.21504,2327.4,2325.9,7.16939551]
[1769959026664,0.91897058,2327.5,2325.9,7.16939551]
[1769959026863,0.00340524,2327.5,2326.1,7.16939551]
[1769959027061,0.00340524,2327.5,2326.3,7.16939551]
[1769959027461,0.00340524,2327.5,2326.5,7.10170488]
[1769959027858,6.04469261,2331.5,2326.5,7.10170488]
[1769959027859,0.76430685,2329.2,2326.5,7.10170488]
[1769959028067,2.578,2330.1,2327.2,7.10170488]
[1769959028262,0.07476531,2330.0,2327.4,7.10170488]
[1769959028461,0.21485,2329.4,2327.4,7.10170488]
[1769959028665,0.21485,2329.4,2327.6,7.10170488]
[1769959028862,0.07476531,2330.0,2327.8,7.10170488]
[1769959029164,3.39660441,2331.5,2328.5,7.10170488]
[1769959029369,0.21463,2331.8,2329.2,0.21486]
[1769959029566,0.21469,2331.2,2329.3,17.09281704]
[1769959029862,0.21469,2331.1,2329.4,7.05381704]
[1769959030064,0.00349824,2331.1,2329.6,7.05381704]
[1769959030269,0.21455,2332.7,2329.7,7.26862704]
[1769959030468,4.32242074,2332.9,2329.9,7.26860704]
[1769959030469,0.92581633,2332.9,2329.9,7.26860704]
[1769959030763,3.39660441,2333.1,2330.1,7.05381704]
[1769959030764,10.93378003,2332.8,2330.1,7.05381704]
[1769959030965,10.93378003,2332.8,2330.3,7.05381704]
[1769959030966,0.21455,2332.6,2330.3,7.05381704]
[1769959031158,0.21457,2332.5,2330.3,7.05381704]
[1769959031362,0.21457,2332.5,2330.5,7.05718869]
[1769959031563,0.00484818,2332.6,2330.5,7.05718869]
[1769959031863,0.00484818,2332.6,2330.7,7.05718869]
[1769959032260,0.00484818,2332.6,2330.9,7.05718869]
[1769959032462,4.25479182,2334.1,2331.4,7.0547646]
[1769959032662,4.25479182,2334.1,2330.9,0.2147]
[1769959032663,0.85818741,2334.0,2331.6,7.0547646]
[1769959032964,0.21436,2334.7,2332.2,7.0547646]
[1769959033163,0.85818741,2335.2,2332.7,7.0547646]
[1769959033467,0.21435,2334.8,2332.9,7.05381704]
[1769959033970,0.00313947,2335.2,2333.1,7.05381704]
[1769959034164,0.00313947,2335.2,2333.3,7.05381704]
[1769959034358,0.00313947,2335.2,2333.5,7.05381704]
[1769959034764,0.00313947,2335.2,2333.7,7.05381704]
[1769959034976,3.48187742,2336.8,2333.7,7.05381704]
[1769959035273,0.21416,2337.0,2334.7,7.05381704]
[1769959035565,0.21409,2337.6,2335.2,7.05381704]
[1769959035766,0.21409,2337.6,2335.3,9.62981704]
[1769959035767,0.89205311,2337.6,2335.3,9.62981704]
[1769959035963,0.21416,2336.9,2335.4,7.05381704]
[1769959036168,0.00402972,2337.6,2335.4,7.05381704]
[1769959036364,0.00402972,2337.6,2335.6,7.05381704]
[1769959036365,0.21411,2337.5,2335.6,7.05381704]
[1769959036562,0.21411,2337.5,2335.8,7.05381704]
[1769959036763,0.21421,2336.4,2335.5,14.61983216]
[1769959036967,0.00402972,2337.6,2334.5,2.576]
[1769959036968,1.32542311,2336.6,2334.5,2.576]
[1769959037169,0.21423,2336.1,2334.6,2.575]
[1769959037567,2.0557595,2336.1,2334.7,14.61983216]
[1769959037766,0.21423,2336.1,2334.7,14.61983216]
[1769959038072,2.78917,2336.8,2334.7,14.6251914]
[1769959038372,1.20090455,2337.5,2334.7,14.6251914]
[1769959038567,0.21423,2336.2,2334.7,17.2001914]
[1769959038772,0.21423,2336.2,2334.8,7.05381704]
[1769959038969,1.8415295,2335.7,2334.8,7.05381704]
[1769959039171,1.20090455,2337.1,2335.0,7.05381704]
[1769959039469,3.39660441,2337.9,2335.2,7.05381704]
[1769959039671,7.45060258,2340.3,2335.1,2.575]
[1769959039672,1.10047439,2338.7,2336.1,7.05381704]
[1769959039969,0.21405,2338.1,2336.3,7.05381704]
[1769959040178,2.575,2339.3,2336.3,7.05381704]
[1769959040368,2.575,2339.3,2334.1,2.47110821]
[1769959040369,1.10047439,2339.8,2336.9,7.05381704]
[1769959040669,1.10047439,2339.8,2337.1,7.05381704]
[1769959040872,0.21149,2338.8,2337.3,7.05381704]
[1769959041073,0.21403,2338.4,2337.3,7.05381704]
[1769959041274,0.21396,2339.1,2337.5,7.05381704]
[1769959041467,0.21389,2339.9,2337.6,0.21409]
[1769959041665,3.39660441,2340.5,2337.6,0.21409]
[1769959041666,0.21391,2339.7,2337.8,7.05381704]
[1769959041971,0.21383,2340.5,2338.5,7.05381704]
[1769959042172,0.21378,2341.1,2338.7,7.05381704]
[1769959042377,0.9627902,2341.0,2338.9,7.05381704]
[1769959042566,1.8415295,2340.7,2338.9,7.05381704]
[1769959042876,0.21379,2340.9,2339.1,7.05381704]
[1769959043070,0.9627902,2342.3,2339.3,7.05381704]
[1769959043270,0.2137,2341.9,2339.5,7.05381704]
[1769959043469,2.573,2343.2,2339.4,14.61983216]
[1769959043470,2.573,2343.2,2341.0,7.05381704]
[1769959043674,0.21356,2343.5,2341.2,7.05381704]
[1769959043871,0.94530942,2343.8,2341.3,7.05381704]
[1769959044069,0.21354,2343.7,2341.5,7.05381704]
[1769959044269,0.21346,2344.6,2341.6,7.05381704]
[1769959044469,0.94530942,2345.0,2342.1,7.05381704]
[1769959044670,0.94530942,2344.7,2342.1,7.05381704]
[1769959044973,0.21355,2343.6,2342.3,7.05381704]
[1769959045275,0.2136,2343.0,2341.1,14.61983216]
[1769959045481,4.75211837,2343.4,2341.1,14.61983216]
[1769959045676,1.8415295,2343.1,2341.1,14.61983216]
[1769959045871,3.39660441,2342.7,2341.0,0.00448126]
[1769959046075,5.23813391,2341.7,2339.4,2.57]
[1769959046373,3.39660441,2341.3,2339.5,14.61983216]
[1769959046576,3.39660441,2341.3,2339.3,2.57]
[1769959046771,1.35551396,2341.2,2338.9,2.57]
[1769959046967,0.21382,2340.7,2339.0,14.61983216]
[1769959047369,1.8415295,2340.6,2339.1,7.05381704]
[1769959047773,1.8415295,2340.4,2339.3,7.05381704]
[1769959047976,0.00439363,2341.2,2339.3,7.05381704]
[1769959048279,0.00439363,2341.2,2339.5,7.05381704]
[1769959048469,0.21377,2341.1,2339.7,7.05381704]
[1769959048669,2.0552995,2341.1,2339.7,7.05381704]
[1769959048871,1.8415295,2340.9,2339.7,7.05381704]
[1769959049080,1.8415295,2340.7,2339.9,7.05381704]
[1769959049279,0.21387,2340.1,2339.7,14.18715216]
[1769959049575,1.8415295,2340.4,2339.8,12.37749875]
[1769959049775,1.8415295,2340.6,2339.5,7.05381704]
[1769959049974,1.8415295,2340.5,2339.5,7.05381704]
[1769959050175,1.8415295,2340.4,2339.6,11.94068875]
[1769959050482,0.00439363,2341.2,2339.7,7.05381704]
[1769959050773,1.8415295,2340.3,2339.1,7.05381704]
[1769959050979,0.21385,2340.3,2339.2,11.94068875]
[1769959051177,2.0553795,2340.3,2339.3,7.05381704]
[1769959051378,1.8415295,2339.8,2339.3,7.05381704]
[1769959051576,2.0554195,2339.9,2338.9,0.00552444]
[1769959051879,1.36088633,2340.7,2339.0,11.94068875]
[1769959051880,1.8415295,2339.7,2339.0,11.94068875]
[1769959052082,1.8415295,2339.9,2339.0,11.46438875]
[1769959052275,1.8415295,2339.9,2338.6,7.05381704]
[1769959052276,0.21393,2339.5,2338.6,7.05381704]
[1769959052579,0.21394,2339.3,2338.7,11.03461875]
[1769959052772,1.8415295,2339.0,2338.6,17.88007023]
[1769959053174,0.214,2338.7,2336.6,2.568]
[1769959053373,0.00395133,2338.7,2336.7,10.55061875]
[1769959053681,0.21794133,2338.7,2336.8,2.568]
[1769959053875,0.00395133,2338.7,2336.8,2.568]
[1769959054077,0.00395133,2338.7,2336.9,10.55061875]
[1769959054382,2.568,2339.5,2337.0,0.21414]
[1769959054588,2.568,2339.5,2337.2,0.21413]
[1769959054779,2.78192,2339.5,2337.3,7.05381704]
[1769959054986,3.97058324,2339.5,2337.4,7.05381704]
[1769959055174,1.8415295,2339.0,2337.4,7.05381704]
[1769959055380,0.21403,2338.4,2337.5,10.55061875]
[1769959055673,2.0555595,2338.3,2337.5,10.55061875]
[1769959056073,1.8415295,2338.0,2337.5,17.60443579]
[1769959056277,0.21403,2338.3,2337.6,7.05381704]
[1769959056584,2.0555995,2337.9,2336.6,0.00370692]
[1769959056785,0.21408,2337.8,2336.7,10.55061875]
[1769959057174,2.568,2338.5,2336.7,10.55061875]
[1769959057379,0.21405,2338.2,2336.7,10.55061875]
[1769959058383,0.21405,2338.1,2336.7,10.55061875]
[1769959058584,0.21399,2338.8,2336.8,7.0571989]
[1769959058988,0.214,2338.7,2337.0,7.0571989]
[1769959059185,1.7635278,2340.0,2337.2,7.0571989]
[1769959059382,0.21401,2338.6,2337.2,7.0571989]
[1769959059587,0.21401,2338.6,2337.4,7.0571989]
[1769959059990,1.8415295,2338.5,2337.6,7.0571989]
[1769959060189,0.00247871,2338.5,2337.6,7.0571989]
[1769959060395,1.76450837,2339.5,2337.8,7.0571989]
[1769959060893,1.8415295,2339.1,2337.8,7.0571989]
[1769959061082,0.21398,2338.9,2338.0,7.0571989]
[1769959061283,0.21398,2338.8,2338.0,7.0571989]
[1769959061483,2.0555495,2338.5,2337.6,7.0571989]
[1769959061688,0.21402,2338.5,2337.6,7.0571989]
[1769959061982,0.21396,2339.1,2337.8,7.0571989]
[1769959062392,0.21396,2339.1,2338.0,7.0571989]
[1769959062583,0.21396,2339.1,2338.0,9.6251989]
[1769959062780,1.8415295,2338.9,2338.1,17.15321765]
[1769959062984,0.21396,2339.0,2338.2,17.15321765]
[1769959063186,0.21396,2339.0,2338.2,7.0571989]
[1769959063387,0.214,2338.7,2338.3,9.23403875]
[1769959063588,0.214,2338.6,2338.3,8.94e-06]
[1769959063783,1.8415295,2338.4,2338.3,8.94e-06]
[1769959063985,0.21399,2338.7,2337.5,7.0571989]
[1769959064188,0.21399,2338.7,2338.0,7.0571989]
[1769959064487,0.21393,2339.4,2338.0,7.0571989]
[1769959064693,0.21393,2339.4,2338.2,6.92075014]
[1769959064887,0.2190032,2339.4,2338.2,6.925163]
[1769959065087,0.0050732,2339.4,2338.4,6.92075014]
[1769959065293,0.21388,2340.0,2338.4,6.92075014]
[1769959065488,0.21388,2340.0,2338.6,6.92075014]
[1769959065687,2.0554095,2340.0,2338.6,6.92075014]
[1769959065893,5.96460441,2340.9,2338.2,2.57241286]
[1769959065894,0.21382,2340.6,2338.8,6.92075014]
[1769959066393,0.21383,2340.5,2339.0,6.92075014]
[1769959066589,3.39660441,2340.9,2339.0,6.92075014]
[1769959066797,3.39660441,2340.9,2338.2,0.21845286]
[1769959066798,2.31417794,2340.7,2339.2,6.92075014]
[1769959067000,0.2139,2339.8,2338.8,9.48875014]
[1769959067191,0.2139,2339.8,2338.9,9.23403875]
[1769959067399,5.71078235,2340.4,2338.9,16.15478889]
[1769959067700,1.8415295,2339.1,2338.4,6.92075014]
[1769959067998,1.8415295,2340.0,2338.4,6.92075014]
[1769959068297,2.568,2340.8,2338.4,6.92075014]
[1769959068298,2.0554795,2339.2,2338.4,6.92075014]
[1769959068602,0.21396,2339.0,2338.4,6.92075014]
[1769959068800,2.0554895,2339.0,2338.2,0.00441286]
[1769959069001,1.8415295,2338.6,2338.2,0.00441286]
[1769959069200,1.8415295,2339.0,2338.2,6.925163]
[1769959069500,0.21388,2340.0,2338.2,6.925163]
[1769959069706,0.21389,2339.8,2338.2,6.925163]
[1769959069906,1.8415295,2339.8,2338.2,6.925163]
[1769959070101,2.23505573,2339.7,2338.2,2.86e-06]
[1769959070298,10.82383074,2337.4,2336.1,2.3982623]